bitfinex-derivatives/quotes_SOLF0:USTF0_20241206
["timestamp","ask_amount","ask_price","bid_price","bid_amount"]
[1733512541875,2.0814,239.86,239.84,2.28]
[1733512542075,2.0814,239.86,239.85,6.4063701]
[1733512542671,2.0814,239.85,239.83,6.4063701]
[1733512543475,2.0815,239.84,239.83,6.4063701]
[1733512544569,6.4063701,239.93,239.83,6.4063701]
[1733512544769,6.4063701,239.93,239.85,6.4063701]
[1733512544770,7.1833619,239.92,239.85,6.4063701]
[1733512545073,7.1833619,239.91,239.85,6.4063701]
[1733512545269,6.4063701,239.93,239.82,2.28]
[1733512545474,2.0815,239.84,239.83,6.4063701]
[1733512546276,2.0814,239.86,239.83,6.4063701]
[1733512546578,6.4063701,239.93,239.83,6.4063701]
[1733512546878,7.18117461,239.92,239.83,6.4063701]
[1733512547077,7.18117461,239.91,239.83,6.4063701]
[1733512547284,2.0817,239.82,239.79,2.28]
[1733512547473,2.0817,239.82,239.79,8.6863701]
[1733512547677,6.4063701,239.87,239.78,4.26978]
[1733512547878,6.4063701,239.87,239.79,6.4063701]
[1733512548582,2.0818,239.81,239.79,6.4063701]
[1733512548883,6.4063701,239.87,239.79,6.4063701]
[1733512549582,6.4063701,239.85,239.78,1.98978]
[1733512549785,6.4063701,239.83,239.78,1.98978]
[1733512550174,2.26,239.85,239.72,8.6663701]
[1733512550175,6.4063701,239.81,239.72,8.6663701]
[1733512550381,6.4063701,239.79,239.72,2.26]
[1733512551084,6.4063701,239.79,239.69,2.0827]
[1733512551085,2.0824,239.74,239.69,10.7490701]
[1733512551681,2.0826,239.72,239.69,6.4063701]
[1733512551886,6.4063701,239.77,239.69,6.4063701]
[1733512553181,2.0824,239.74,239.71,6.4063701]
[1733512553387,6.4063701,239.79,239.71,6.4063701]
[1733512553784,2.0824,239.74,239.71,6.4063701]
[1733512555388,2.0823,239.76,239.71,6.4063701]
[1733512555688,6.4063701,239.79,239.71,6.4063701]
[1733512556586,1.3278,239.82,239.73,6.4063701]
[1733512556890,2.0821,239.78,239.73,6.4063701]
[1733512557189,1.3278,239.82,239.73,6.4063701]
[1733512558286,1.3894,239.84,239.77,6.4063701]
[1733512558684,2.0817,239.82,239.77,6.4063701]
[1733512558886,1.3894,239.84,239.77,8.4884701]
[1733512559189,1.3894,239.84,239.77,6.4063701]
[1733512559394,1.3894,239.84,239.78,2.0819]
[1733512559888,6.4063701,239.85,239.78,2.0819]
[1733512560691,2.0816,239.83,239.78,2.0819]
[1733512561395,2.0816,239.83,239.79,6.4063701]
[1733512561894,6.4063701,239.85,239.77,6.4063701]
[1733512562189,6.4063701,239.83,239.75,10.0399701]
[1733512562687,6.4063701,239.83,239.75,2.26]
[1733512562890,6.4063701,239.83,239.75,8.6663701]
[1733512563485,2.0821,239.78,239.75,8.6663701]
[1733512564191,2.0821,239.78,239.75,6.4063701]
[1733512564886,6.4063701,239.83,239.75,6.4063701]
[1733512565086,2.0821,239.77,239.75,6.4063701]
[1733512566097,2.0823,239.75,239.74,2.26]
[1733512566993,6.4063701,239.81,239.74,2.26]
[1733512566994,2.0822,239.76,239.74,2.26]
[1733512567592,2.0822,239.76,239.74,8.6663701]
[1733512567796,6.4063701,239.83,239.74,8.6663701]
[1733512568494,2.0822,239.77,239.74,8.6663701]
[1733512569495,1.4004,239.86,239.74,8.6663701]
[1733512569795,6.4063701,239.85,239.76,6.4063701]
[1733512569996,6.4063701,239.85,239.78,6.4063701]
[1733512570591,2.0818,239.81,239.78,6.4063701]
[1733512570995,7.7264701,239.87,239.78,6.4063701]
[1733512571197,2.0817,239.82,239.78,6.4063701]
[1733512573197,2.0817,239.82,239.78,8.4883701]
[1733512573496,2.0817,239.82,239.78,6.4063701]
[1733512574502,2.0818,239.81,239.78,6.4063701]
[1733512575598,1.3201,239.87,239.51,29.88838596]
[1733512575804,6.4063701,239.72,239.63,6.4063701]
[1733512575998,6.4063701,239.74,239.65,6.4063701]
[1733512576301,2.0826,239.72,239.65,8.4894701]
[1733512576500,6.4063701,239.74,239.67,2.26]
[1733512577200,6.4063701,239.77,239.69,6.4063701]
[1733512577403,2.26,239.8,239.69,6.4063701]
[1733512577601,6.4063701,239.77,239.69,8.4890701]
[1733512578704,2.0823,239.75,239.69,8.4890701]
[1733512580204,6.4063701,239.73,239.68,2.75304]
[1733512580399,6.4063701,239.73,239.68,1.46044]
[1733512580597,6.4063701,239.75,239.68,1.46044]
[1733512580902,6.4063701,239.77,239.68,9.9497101]
[1733512581600,6.4063701,239.75,239.68,7.8668101]
[1733512582401,2.0825,239.73,239.68,7.8668101]
[1733512582804,2.0825,239.73,239.68,1.46044]
[1733512583006,2.0827,239.7,239.68,1.46044]
[1733512583207,6.4063701,239.73,239.68,1.46044]
[1733512583603,6.4063701,239.75,239.68,1.46044]
[1733512584398,6.4063701,239.75,239.68,7.8668101]
[1733512585305,2.0825,239.72,239.68,9.9496101]
[1733512585508,6.4063701,239.77,239.68,9.9496101]
[1733512585703,2.0825,239.73,239.69,2.0828]
[1733512585904,6.4063701,239.77,239.69,2.0828]
[1733512586408,2.0824,239.74,239.69,2.0828]
[1733512587206,2.0823,239.75,239.7,2.0827]
[1733512587607,6.4063701,239.77,239.68,7.8668101]
[1733512588510,2.0824,239.74,239.69,2.0827]
[1733512589808,2.0825,239.72,239.68,9.9497101]
[1733512590010,2.0825,239.72,239.68,7.8668101]
[1733512590210,6.4063701,239.73,239.68,1.46044]
[1733512590407,2.0827,239.7,239.68,1.46044]
[1733512590714,6.4063701,239.73,239.68,1.46044]
[1733512591303,2.0828,239.69,239.68,1.46044]
[1733512593207,8.4891701,239.69,239.68,1.46044]
[1733512594010,2.0833,239.64,239.59,6.4063701]
[1733512594211,2.26,239.74,239.59,6.4063701]
[1733512594212,6.4063701,239.67,239.59,6.4063701]
[1733512596114,2.0832,239.65,239.59,6.4063701]
[1733512596315,6.4063701,239.67,239.59,6.4063701]
[1733512596818,2.0833,239.63,239.59,6.4063701]
[1733512597715,2.0832,239.65,239.6,2.0835]
[1733512597918,6.4063701,239.69,239.61,6.4063701]
[1733512598725,2.0831,239.66,239.62,2.0834]
[1733512599026,6.4063701,239.69,239.61,6.4063701]
[1733512599232,1.381,239.73,239.59,6.4063701]
[1733512599233,6.4063701,239.67,239.59,6.4063701]
[1733512600628,2.0832,239.65,239.6,2.0836]
[1733512601831,2.0832,239.65,239.59,6.4063701]
[1733512601832,2.0832,239.65,239.61,2.0835]
[1733512602027,2.0832,239.65,239.61,8.4898701]
[1733512602229,2.0831,239.66,239.62,2.0834]
[1733512602530,6.4063701,239.69,239.61,6.4063701]
[1733512602725,2.7149,239.78,239.64,2.0831]
[1733512602926,6.4063701,239.69,239.58,1.3219]
[1733512603128,6.4063701,239.67,239.58,7.7282701]
[1733512603534,2.26,239.71,239.58,7.7282701]
[1733512603535,6.4063701,239.65,239.58,7.7282701]
[1733512603830,2.0837,239.59,239.55,2.26]
[1733512605232,2.0837,239.59,239.55,4.344]
[1733512605433,2.0837,239.59,239.54,6.4063701]
[1733512605627,6.4063701,239.63,239.5,1.355]
[1733512605628,2.0838,239.58,239.5,1.355]
[1733512605932,6.4063701,239.61,239.52,2.0842]
[1733512606134,6.4063701,239.61,239.53,6.4063701]
[1733512606534,2.0838,239.58,239.53,6.4063701]
[1733512606731,6.4063701,239.61,239.53,6.4063701]
[1733512607233,6.4063701,239.63,239.53,8.4905701]
[1733512607635,2.0837,239.59,239.53,8.4905701]
[1733512607832,6.4063701,239.63,239.53,8.4905701]
[1733512608335,6.4063701,239.61,239.53,8.4905701]
[1733512608729,2.0838,239.58,239.53,8.4905701]
[1733512608934,6.4063701,239.61,239.53,6.4063701]
[1733512609237,2.0839,239.57,239.53,6.4063701]
[1733512610539,2.0839,239.57,239.53,8.4905701]
[1733512611634,6.4063701,239.54,239.41,3.54313162]
[1733512611842,6.4063701,239.54,239.19,243.43740345]
[1733512611843,2.26,239.53,239.37,6.4063701]
[1733512612036,13.8384,239.68,239.4,6.4063701]
[1733512612037,6.4063701,239.49,239.4,6.4063701]
[1733512612237,2.0847,239.47,239.4,8.6663701]
[1733512612546,2.0847,239.47,239.41,2.26]
[1733512613049,2.26,239.55,239.41,2.26]
[1733512613050,2.0849,239.45,239.41,2.26]
[1733512613337,2.0849,239.45,239.4,6.4063701]
[1733512613338,2.0849,239.45,239.42,2.26]
[1733512616938,2.26,239.55,239.36,1.3724]
[1733512616939,6.4063701,239.44,239.36,1.3724]
[1733512617143,2.26,239.55,239.36,1.3724]
[1733512617144,3.0704,239.54,239.36,1.3724]
[1733512617345,2.0852,239.42,239.36,1.3724]
[1733512617539,2.0852,239.42,239.37,6.4063701]
[1733512617734,3.0704,239.54,239.39,6.4063701]
[1733512618037,2.0848,239.46,239.39,6.4063701]
[1733512618345,6.4063701,239.48,239.39,6.4063701]
[1733512618541,2.0849,239.45,239.39,6.4063701]
[1733512621441,6.4063701,239.48,239.39,6.4063701]
[1733512621648,6.4063701,239.5,239.41,6.4063701]
[1733512621941,6.4063701,239.5,239.42,2.26]
[1733512622145,2.0847,239.47,239.42,2.26]
[1733512622746,6.4063701,239.48,239.42,2.26]
[1733512623750,2.61521,239.57,239.43,6.4063701]
[1733512623939,6.4063701,239.51,239.43,6.4063701]
[1733512624344,2.0846,239.48,239.43,6.4063701]
[1733512625652,2.0851,239.43,239.41,2.26]
[1733512625949,6.4063701,239.45,239.41,2.26]
[1733512627251,2.0851,239.43,239.41,2.26]
[1733512627751,2.085,239.44,239.41,2.26]
[1733512630254,2.61521,239.57,239.42,6.4063701]
[1733512630455,6.4063701,239.51,239.44,6.4063701]
[1733512630649,2.61521,239.57,239.44,6.4063701]
[1733512630650,2.0845,239.5,239.44,6.4063701]
[1733512630845,2.61521,239.57,239.44,6.4063701]
[1733512631051,6.4063701,239.53,239.46,6.4063701]
[1733512631251,2.0843,239.52,239.47,2.26]
[1733512631747,6.4063701,239.53,239.47,2.26]
[1733512631951,6.4063701,239.53,239.47,4.3447]
[1733512632155,6.4063701,239.55,239.47,2.26]
[1733512632456,2.0842,239.53,239.47,5.6981]
[1733512632651,2.61521,239.57,239.47,3.6135]
[1733512632853,6.4063701,239.55,239.47,3.6135]
[1733512633651,2.0842,239.54,239.48,8.4909701]
[1733512633952,2.61521,239.57,239.48,6.4063701]
[1733512634151,4.69911,239.57,239.52,6.4063701]
[1733512634352,4.69911,239.57,239.53,2.26]
[1733512634751,2.61521,239.57,239.53,2.26]
[1733512640259,2.0839,239.56,239.53,2.26]
[1733512640452,6.4063701,239.56,239.52,2.26]
[1733512640856,2.084,239.55,239.52,2.26]
[1733512641657,2.084,239.55,239.49,2.0845]
[1733512641658,6.4063701,239.56,239.48,1.4048]
[1733512641964,6.4063701,239.54,239.47,3.6135]
[1733512642165,6.4063701,239.56,239.49,6.4063701]
[1733512643759,6.4063701,239.56,239.47,7.7598701]
[1733512643960,6.4063701,239.54,239.48,2.26]
[1733512644862,6.4063701,239.56,239.48,2.26]
[1733512645662,2.0843,239.53,239.48,2.26]
[1733512647767,2.0843,239.52,239.48,2.26]
[1733512653671,6.4063701,239.55,239.48,2.26]
[1733512653871,2.0844,239.51,239.48,2.26]
[1733512655165,2.0843,239.52,239.48,2.26]
[1733512659172,2.0844,239.51,239.48,2.26]
[1733512662676,2.0843,239.53,239.48,2.26]
[1733512663175,6.4063701,239.56,239.48,4.3446]
[1733512663378,2.0843,239.52,239.48,4.3446]
[1733512663579,2.0843,239.52,239.48,10.7509701]
[1733512663777,2.0843,239.52,239.48,8.6663701]
[1733512663980,2.0844,239.51,239.48,8.6663701]
[1733512665778,1.3195,239.61,239.48,8.6663701]
[1733512665977,7.17920342,239.6,239.52,6.4063701]
[1733512666178,7.17920342,239.6,239.48,2.26]
[1733512666179,6.4063701,239.62,239.54,6.4063701]
[1733512666584,6.4063701,239.62,239.54,8.6663701]
[1733512667185,2.0837,239.59,239.54,8.6663701]
[1733512667376,6.4063701,239.62,239.54,8.6663701]
[1733512667776,2.26,239.67,239.54,8.6663701]
[1733512667984,7.18144566,239.66,239.56,6.4063701]
[1733512668283,2.0836,239.61,239.56,6.4063701]
[1733512668483,6.4063701,239.64,239.56,6.4063701]
[1733512668786,6.4063701,239.62,239.56,6.4063701]
[1733512669388,6.4063701,239.62,239.54,8.6663701]
[1733512669587,7.17941386,239.61,239.54,8.6663701]
[1733512669787,2.0837,239.59,239.54,10.7504701]
[1733512670987,2.0837,239.59,239.55,2.26]
[1733512671786,2.0836,239.61,239.56,2.0839]
[1733512671982,2.0836,239.61,239.56,8.4902701]
[1733512672189,8.6026401,239.63,239.55,2.26]
[1733512672389,7.18534295,239.62,239.55,2.26]
[1733512672589,2.0836,239.6,239.55,4.344]
[1733512672786,2.0836,239.6,239.56,6.4063701]
[1733512673384,2.0836,239.6,239.56,8.4902701]
[1733512673588,2.0834,239.62,239.56,8.4902701]
[1733512676292,4.27967,239.63,239.57,2.0838]
[1733512676493,7.18562267,239.62,239.57,2.0838]
[1733512676693,2.19627,239.63,239.57,2.0838]
[1733512677695,2.0834,239.62,239.57,2.0838]
[1733512679493,2.19627,239.63,239.6,6.4063701]
[1733512679693,2.19627,239.63,239.6,8.6663701]
[1733512680086,2.19627,239.63,239.6,10.7499701]
[1733512680890,2.19627,239.63,239.6,8.6663701]
[1733512681086,2.19627,239.63,239.61,2.0835]
[1733512681296,2.19627,239.63,239.6,8.6663701]
[1733512681797,2.19627,239.63,239.62,2.0834]
[1733512682297,2.19627,239.63,239.62,8.4897701]
[1733512682494,6.4063701,239.69,239.62,6.4063701]
[1733512682692,6.4063701,239.69,239.63,2.0833]
[1733512683691,2.0831,239.67,239.62,8.4897701]
[1733512683997,7.17622208,239.66,239.62,8.4897701]
[1733512684395,7.17622208,239.66,239.6,2.26]
[1733512684596,2.26,239.77,239.6,2.26]
[1733512684597,7.17622208,239.65,239.6,2.26]
[1733512684798,6.4063701,239.67,239.6,2.26]
[1733512684988,7.17218782,239.66,239.6,2.26]
[1733512685302,7.17218782,239.65,239.6,2.26]
[1733512685595,2.0834,239.63,239.6,2.26]
[1733512686388,2.0835,239.62,239.6,2.26]
[1733512686689,6.4063701,239.67,239.6,2.26]
[1733512686891,7.16973875,239.66,239.6,10.7499701]
[1733512687097,7.16973875,239.65,239.6,8.6663701]
[1733512687394,6.4063701,239.71,239.62,6.4063701]
[1733512687691,6.4063701,239.71,239.6,2.26]
[1733512687692,7.17042938,239.7,239.66,6.4063701]
[1733512687897,0.3935,239.79,239.66,8.6663701]
[1733512687898,6.4063701,239.76,239.66,8.6663701]
[1733512688099,7.17123266,239.75,239.67,2.0829]
[1733512688399,7.17123266,239.74,239.67,2.0829]
[1733512688595,7.17123266,239.73,239.67,2.0829]
[1733512688790,9.25393266,239.72,239.66,4.3431]
[1733512688987,7.17123266,239.71,239.66,4.3431]
[1733512689294,2.0827,239.72,239.66,4.3431]
[1733512689493,7.16722555,239.71,239.66,4.3431]
[1733512689689,2.0827,239.72,239.66,4.3431]
[1733512690895,2.0828,239.7,239.66,2.26]
[1733512692699,0.3935,239.79,239.66,4.3431]
[1733512692700,2.0827,239.71,239.66,4.3431]
[1733512693600,2.0827,239.71,239.67,8.4893701]
[1733512693998,2.0825,239.74,239.69,8.4891701]
[1733512694600,2.0825,239.74,239.69,6.4063701]
[1733512695508,2.0825,239.73,239.69,6.4063701]
[1733512697303,6.4063701,239.74,239.66,2.26]
[1733512698307,2.0826,239.72,239.66,2.26]
[1733512698507,6.4063701,239.74,239.66,2.26]
[1733512698908,2.0826,239.72,239.66,2.26]
[1733512699207,6.4063701,239.74,239.66,2.26]
[1733512700003,2.0828,239.7,239.66,2.26]
[1733512701705,0.3935,239.79,239.67,6.4063701]
[1733512702105,6.4063701,239.76,239.67,6.4063701]
[1733512702311,6.4063701,239.74,239.67,6.4063701]
[1733512702607,2.0827,239.71,239.67,8.4893701]
[1733512703609,6.4063701,239.74,239.67,8.4893701]
[1733512704511,2.0826,239.72,239.67,6.4063701]
[1733512704809,2.0826,239.72,239.66,4.3431]
[1733512705607,2.0826,239.72,239.66,2.0831]
[1733512705814,2.0827,239.71,239.66,2.0831]
[1733512706110,6.4063701,239.74,239.66,2.0831]
[1733512706509,2.0827,239.72,239.66,2.0831]
[1733512706710,6.4063701,239.74,239.66,2.0831]
[1733512707409,2.0826,239.72,239.66,2.0831]
[1733512707908,2.0826,239.72,239.67,2.083]
[1733512708104,2.0826,239.72,239.67,8.4893701]
[1733512708308,2.0825,239.74,239.67,6.4063701]
[1733512708614,6.4063701,239.77,239.69,6.4063701]
[1733512708808,7.16062242,239.76,239.69,6.4063701]
[1733512709109,0.3935,239.79,239.71,8.4890701]
[1733512709316,7.16405789,239.78,239.71,8.4890701]
[1733512709509,6.4063701,239.77,239.7,2.24]
[1733512709707,6.4063701,239.77,239.7,4.3228]
[1733512709913,2.24,239.83,239.71,6.4063701]
[1733512710216,6.4063701,239.79,239.71,6.4063701]
[1733512710405,7.16390094,239.78,239.71,6.4063701]
[1733512710713,2.0823,239.77,239.72,2.0826]
[1733512710914,6.4063701,239.75,239.6,2.24]
[1733512711114,4.0883,239.86,239.63,2.0834]
[1733512711115,8.4891701,239.7,239.63,2.0834]
[1733512711319,6.4063701,239.7,239.58,3.5642]
[1733512711611,6.4063701,239.7,239.62,6.4063701]
[1733512712007,6.4063701,239.72,239.62,6.4063701]
[1733512712211,7.16929513,239.71,239.62,6.4063701]
[1733512712414,7.16929513,239.7,239.62,6.4063701]
[1733512712811,6.4063701,239.72,239.62,6.4063701]
[1733512713007,7.17020945,239.71,239.62,6.4063701]
[1733512713314,7.17020945,239.7,239.62,6.4063701]
[1733512713511,6.4063701,239.72,239.62,6.4063701]
[1733512713709,7.17111762,239.71,239.62,8.6663701]
[1733512713915,6.4063701,239.72,239.62,8.6663701]
[1733512714511,4.0883,239.77,239.62,8.6663701]
[1733512714714,6.4063701,239.73,239.64,6.4063701]
[1733512714912,7.17343319,239.72,239.64,6.4063701]
[1733512715916,2.083,239.68,239.62,8.6663701]
[1733512716420,2.0824,239.75,239.68,2.0829]
[1733512716618,2.0824,239.75,239.7,6.4063701]
[1733512716810,6.4063701,239.78,239.7,8.6663701]
[1733512717009,2.0824,239.75,239.7,8.6663701]
[1733512717215,2.0824,239.75,239.7,2.26]
[1733512717416,6.4063701,239.78,239.7,2.26]
[1733512717619,2.0825,239.73,239.7,2.26]
[1733512717813,2.42,239.81,239.7,2.26]
[1733512718015,6.4063701,239.76,239.7,2.26]
[1733512718318,7.17831323,239.75,239.7,2.26]
[1733512718518,6.4063701,239.76,239.66,6.4063701]
[1733512718717,7.17830113,239.75,239.66,8.8263701]
[1733512718919,6.4063701,239.74,239.66,8.8263701]
[1733512719510,2.0825,239.73,239.67,2.083]
[1733512719916,6.4063701,239.72,239.58,1.3242]
[1733512720220,2.0828,239.7,239.63,2.0834]
[1733512720513,2.0828,239.7,239.62,6.4063701]
[1733512720514,6.4063701,239.72,239.62,6.4063701]
[1733512721221,7.17873231,239.71,239.62,6.4063701]
[1733512721416,2.0829,239.68,239.62,6.4063701]
[1733512721718,6.4063701,239.72,239.62,6.4063701]
[1733512722115,7.17867428,239.71,239.62,6.4063701]
[1733512722310,7.17867428,239.7,239.62,6.4063701]
[1733512722517,7.17867428,239.69,239.62,6.4063701]
[1733512722716,7.17867428,239.68,239.63,2.0833]
[1733512722920,2.0829,239.69,239.63,2.0833]
[1733512723219,7.18251538,239.68,239.63,2.0833]
[1733512723422,2.0829,239.69,239.63,2.0833]
[1733512723720,7.18256156,239.68,239.64,6.4063701]
[1733512723924,2.0829,239.69,239.64,6.4063701]
[1733512724123,7.18257385,239.68,239.64,6.4063701]
[1733512724323,2.0828,239.7,239.64,8.4896701]
[1733512724517,7.18423125,239.69,239.64,8.4896701]
[1733512724719,7.18423125,239.68,239.66,6.4063701]
[1733512724913,2.0828,239.7,239.66,6.4063701]
[1733512725120,7.18419373,239.69,239.66,6.4063701]
[1733512725420,7.18419373,239.68,239.66,6.4063701]
[1733512725618,2.0828,239.7,239.66,6.4063701]
[1733512725818,7.18427951,239.69,239.66,6.4063701]
[1733512726015,7.18427951,239.68,239.66,6.4063701]
[1733512726212,2.0828,239.7,239.66,6.4063701]
[1733512726414,7.18475734,239.69,239.66,6.4063701]
[1733512726615,7.18475734,239.68,239.66,6.4063701]
[1733512726916,2.0828,239.7,239.66,6.4063701]
[1733512727116,7.18520321,239.69,239.66,6.4063701]
[1733512727314,2.0828,239.7,239.66,6.4063701]
[1733512727315,7.18520321,239.68,239.66,6.4063701]
[1733512727516,2.0828,239.7,239.66,6.4063701]
[1733512727716,7.18565585,239.69,239.66,6.4063701]
[1733512727918,7.18565585,239.68,239.66,6.4063701]
[1733512728216,2.0828,239.7,239.66,6.4063701]
[1733512728417,7.18896598,239.69,239.66,6.4063701]
[1733512728617,7.18896598,239.68,239.66,6.4063701]
[1733512728819,7.18896598,239.69,239.66,6.4063701]
[1733512729217,2.0828,239.7,239.66,6.4063701]
[1733512730025,2.083,239.69,239.66,6.4063701]
[1733512730629,2.083,239.69,239.64,8.4896701]
[1733512731824,2.0829,239.71,239.64,8.4896701]
[1733512732024,7.19192709,239.7,239.64,8.4896701]
[1733512732328,2.0829,239.7,239.64,8.4896701]
[1733512732824,2.0827,239.72,239.66,6.4063701]
[1733512733026,7.1933238,239.71,239.66,6.4063701]
[1733512733231,2.0827,239.72,239.66,6.4063701]
[1733512733424,7.19354389,239.71,239.66,6.4063701]
[1733512733625,2.0827,239.72,239.67,2.0831]
[1733512733928,7.19375752,239.71,239.67,2.0831]
[1733512734129,7.19388933,239.7,239.67,2.0831]
[1733512734323,2.0827,239.72,239.67,2.0831]
[1733512734522,7.19333751,239.71,239.66,6.4063701]
[1733512734723,2.0827,239.72,239.66,8.4895701]
[1733512735029,7.19242415,239.71,239.66,8.4895701]
[1733512735221,7.19242415,239.71,239.68,6.4063701]
[1733512735420,2.0825,239.74,239.7,6.4063701]
[1733512735620,7.19343835,239.73,239.7,6.4063701]
[1733512735821,2.0825,239.74,239.7,6.4063701]
[1733512736027,7.19296614,239.73,239.7,6.4063701]
[1733512736322,2.0824,239.76,239.71,2.0828]
[1733512736519,7.19332461,239.75,239.71,2.0828]
[1733512736722,7.19332461,239.75,239.7,6.4063701]
[1733512736723,4.0346,239.89,239.7,6.4063701]
[1733512737024,2.0823,239.77,239.71,2.0827]
[1733512737223,7.19347355,239.76,239.71,2.42]
[1733512737421,2.0823,239.77,239.71,2.42]
[1733512737730,7.1919453,239.76,239.71,2.42]
[1733512738029,6.4063701,239.79,239.71,2.42]
[1733512738229,7.19146672,239.78,239.71,2.42]
[1733512738430,7.19146672,239.77,239.71,2.42]
[1733512738630,2.0825,239.75,239.71,2.42]
[1733512739229,2.0824,239.76,239.71,10.9091701]
[1733512739431,7.19106754,239.75,239.71,8.8263701]
[1733512739630,6.4063701,239.79,239.71,8.8263701]
[1733512739929,2.0825,239.75,239.71,8.8263701]
[1733512741223,6.4063701,239.79,239.71,8.8263701]
[1733512741428,7.19316068,239.78,239.71,2.42]
[1733512741630,7.19316068,239.77,239.67,3.7171]
[1733512741821,7.19316068,239.76,239.69,6.4063701]
[1733512742023,2.0825,239.74,239.69,6.4063701]
[1733512742223,6.4063701,239.77,239.69,6.4063701]
[1733512742431,7.19294196,239.76,239.69,6.4063701]
[1733512742629,7.19294196,239.75,239.69,6.4063701]
[1733512742829,6.4063701,239.77,239.69,6.4063701]
[1733512743030,7.19313374,239.76,239.69,6.4063701]
[1733512743334,7.19313374,239.75,239.69,6.4063701]
[1733512743532,7.19313374,239.74,239.69,6.4063701]
[1733512743731,2.0826,239.73,239.69,6.4063701]
[1733512744529,7.18974726,239.72,239.69,6.4063701]
[1733512744828,7.18974726,239.71,239.69,6.4063701]
[1733512747838,7.18974726,239.71,239.69,8.4892701]
[1733512748033,7.18974726,239.7,239.69,8.4892701]
[1733512748432,6.4063701,239.79,239.69,8.4892701]
[1733512748631,7.18951589,239.78,239.69,8.4892701]
[1733512748837,7.18951589,239.77,239.69,8.4892701]
[1733512749034,7.18951589,239.76,239.69,8.4892701]
[1733512749236,13.59588599,239.75,239.67,2.42]
[1733512749435,7.18951589,239.74,239.66,9.1224701]
[1733512749638,7.18951589,239.73,239.66,9.1224701]
[1733512749834,7.18951589,239.72,239.66,9.1224701]
[1733512750041,7.18951589,239.71,239.66,9.1224701]
[1733512750241,7.18951589,239.7,239.66,9.1224701]
[1733512750539,7.18951589,239.69,239.66,9.1224701]
[1733512750732,6.4063701,239.75,239.66,6.4063701]
[1733512750938,7.18849096,239.74,239.59,2.6725]
[1733512751132,7.18849096,239.73,239.65,6.4063701]
[1733512751335,2.0831,239.67,239.65,6.4063701]
[1733512751746,6.4063701,239.71,239.63,6.4063701]
[1733512751932,7.18791914,239.7,239.63,6.4063701]
[1733512752131,7.18791914,239.69,239.63,6.4063701]
[1733512752332,7.18688599,239.68,239.63,6.4063701]
[1733512752532,8.7463701,239.71,239.63,6.4063701]
[1733512752737,2.0831,239.68,239.63,6.4063701]
[1733512752933,8.7463701,239.71,239.63,6.4063701]
[1733512753142,7.18675433,239.7,239.63,6.4063701]
[1733512753343,7.18675433,239.69,239.63,6.4063701]
[1733512753539,7.18675433,239.68,239.63,6.4063701]
[1733512753734,6.4063701,239.69,239.61,6.4063701]
[1733512753935,7.1854033,239.68,239.61,6.4063701]
[1733512754143,6.4063701,239.69,239.61,6.4063701]
[1733512754344,2.0833,239.66,239.61,6.4063701]
[1733512754644,6.4063701,239.69,239.61,6.4063701]
[1733512754845,7.1848838,239.68,239.61,6.4063701]
[1733512755038,6.4063701,239.69,239.61,6.4063701]
[1733512755235,2.0834,239.65,239.61,6.4063701]
[1733512756038,2.0834,239.64,239.61,6.4063701]
[1733512756535,6.4063701,239.69,239.59,4.7563]
[1733512756742,2.0834,239.65,239.61,6.4063701]
[1733512757436,6.4063701,239.69,239.61,6.4063701]
[1733512757642,2.0832,239.66,239.61,6.4063701]
[1733512757838,2.0832,239.66,239.63,6.4063701]
[1733512759347,2.0833,239.65,239.63,6.4063701]
[1733512759739,2.34,239.71,239.63,6.4063701]
[1733512759942,7.18284219,239.7,239.65,6.4063701]
[1733512760149,7.18284219,239.69,239.65,6.4063701]
[1733512760443,7.18284219,239.68,239.65,6.4063701]
[1733512760651,7.18284219,239.67,239.65,6.4063701]
[1733512761048,7.18284219,239.66,239.65,6.4063701]
[1733512761542,7.18284219,239.66,239.59,2.6725]
[1733512761746,2.0831,239.67,239.63,6.4063701]
[1733512761950,7.1769654,239.66,239.63,6.4063701]
[1733512762250,1.4094,239.74,239.65,6.4063701]
[1733512762448,7.17786665,239.73,239.65,6.4063701]
[1733512762648,7.17786665,239.73,239.64,2.0834]
[1733512762649,7.17786665,239.72,239.67,6.4063701]
[1733512762848,6.4063701,239.74,239.67,6.4063701]